bitfinex/quotes_ETHUSD_20240910
["timestamp","ask_amount","ask_price","bid_price","bid_amount"]
[1726011317295,4.72381,2395.9,2395.7,2.4566]
[1726011317790,0.55,2395.9,2395.7,2.4566]
[1726011318508,0.55,2396.0,2395.7,2.4566]
[1726011319026,4.72368,2396.0,2395.7,2.4566]
[1726011319304,4.72368,2396.0,2395.4,2.4566]
[1726011319806,4.17381,2395.9,2395.4,6.63126]
[1726011320108,0.55,2395.8,2395.4,6.63126]
[1726011321066,4.17424,2395.7,2395.4,2.4566]
[1726011321271,8.34881,2395.6,2395.2,0.0268411]
[1726011321608,0.55,2395.5,2395.2,0.0268411]
[1726011323082,4.72452,2395.5,2395.2,0.0268411]
[1726011323282,8.34956,2395.4,2395.2,0.0268411]
[1726011323481,4.72484,2395.3,2395.2,0.0268411]
[1726011324176,8.89968,2395.3,2395.2,0.0268411]
[1726011324375,12.82109508,2395.3,2395.2,0.0268411]
[1726011325169,8.64625508,2395.3,2395.2,0.0268411]
[1726011325376,14.02368319,2395.3,2395.2,0.0268411]
[1726011325570,9.84884319,2395.3,2395.2,0.0268411]
[1726011325770,14.02368319,2395.3,2395.2,0.0268411]
[1726011327005,9.84884319,2395.3,2395.2,0.0268411]
[1726011327311,14.02368319,2395.3,2395.2,0.0268411]
[1726011327470,9.84884319,2395.3,2395.2,0.0268411]
[1726011327802,14.02368319,2395.3,2395.2,0.0268411]
[1726011328714,9.84884319,2395.3,2395.2,0.0268411]
[1726011328914,5.92742811,2395.3,2395.2,0.0268411]
[1726011329075,4.17478,2395.4,2395.2,0.0268411]
[1726011329472,4.17477,2395.4,2395.2,0.0268411]
[1726011330417,0.55,2395.3,2395.2,0.0268411]
[1726011331872,0.55,2395.3,2395.2,0.12327576]
[1726011332374,0.55,2395.3,2395.2,0.0268411]
[1726011332993,0.55,2395.4,2395.2,0.0268411]
[1726011333182,0.55,2395.4,2395.2,0.12481105]
[1726011333406,0.55,2395.4,2395.2,0.0268411]
[1726011333615,0.55,2395.4,2395.3,0.09796105]
[1726011333919,0.55,2395.4,2395.2,0.0268411]
[1726011334223,1.5975624,2395.4,2395.3,0.09796105]
[1726011334676,1.5975624,2395.4,2395.2,0.0268411]
[1726011334875,1.5975624,2395.4,2395.3,0.09796105]
[1726011335120,1.5975624,2395.4,2395.2,0.0268411]
[1726011335413,5.7722524,2395.4,2395.3,0.09796105]
[1726011335784,5.7722524,2395.4,2395.2,0.0268411]
[1726011335993,5.7722524,2395.4,2395.3,0.09796105]
[1726011336414,5.7722524,2395.4,2395.2,0.0268411]
[1726011336579,5.7722524,2395.4,2395.3,0.09796105]
[1726011336982,5.7722524,2395.4,2395.2,0.0268411]
[1726011337182,4.72469,2395.4,2395.3,0.09796105]
[1726011337927,4.72469,2395.4,2395.2,0.0268411]
[1726011338130,4.72469,2395.4,2395.3,0.09796105]
[1726011338331,4.72469,2395.4,2395.2,0.0268411]
[1726011338491,4.72469,2395.4,2395.3,0.09796105]
[1726011338691,5.95335201,2395.4,2395.3,0.09796105]
[1726011338887,5.95335201,2395.4,2395.2,0.0268411]
[1726011339088,5.95335201,2395.4,2395.3,0.09796105]
[1726011339289,4.17484,2395.3,2395.2,0.0268411]
[1726011339486,10.0701706,2395.3,2395.2,0.0268411]
[1726011339723,0.55,2395.3,2395.2,0.0268411]
[1726011339884,0.55,2395.3,2395.2,0.12474749]
[1726011341641,4.72484,2395.3,2395.2,0.12474749]
[1726011342287,4.72484,2395.3,2395.2,0.0268411]
[1726011343028,4.72484,2395.3,2395.2,0.12475327]
[1726011343237,0.55,2395.3,2395.2,0.0268411]
[1726011343396,0.55,2395.3,2395.2,0.12475327]
[1726011345129,4.72484,2395.3,2395.2,0.12475327]
[1726011345368,5.8953216,2395.3,2395.2,0.0268411]
[1726011346415,5.8953216,2395.3,2395.2,0.12475327]
[1726011346638,5.8953216,2395.3,2395.2,0.0268411]
[1726011347251,5.8953216,2395.3,2395.2,0.12475327]
[1726011347429,5.8953216,2395.3,2395.2,0.0268411]
[1726011347631,5.8953216,2395.3,2395.2,0.12475327]
[1726011347830,5.8953216,2395.3,2395.2,0.0268411]
[1726011348739,5.8953216,2395.3,2395.2,0.12475327]
[1726011349314,10.17303769,2395.3,2395.2,0.12475327]
[1726011349514,23.71161868,2395.3,2395.2,0.12475327]
[1726011349744,21.52271769,2395.3,2395.2,0.0268411]
[1726011350130,23.63778432,2395.3,2395.2,0.0268411]
[1726011350558,25.82715976,2395.3,2395.2,0.0268411]
[1726011350728,25.82709037,2395.3,2395.2,0.0268411]
[1726011351426,23.63778432,2395.3,2395.2,0.0268411]
[1726011351831,26.26446551,2395.3,2395.2,0.0268411]
[1726011352074,23.63778432,2395.3,2395.2,0.0268411]
[1726011352237,26.26446551,2395.3,2395.2,0.0268411]
[1726011352433,23.63778432,2395.3,2395.2,0.0268411]
[1726011355970,26.26480214,2395.3,2395.2,0.0268411]
[1726011356134,23.63778432,2395.3,2395.2,0.0268411]
[1726011358573,26.26415643,2395.3,2395.2,0.0268411]
[1726011360391,30.43899643,2395.3,2395.2,0.0268411]
[1726011363375,27.81262432,2395.3,2395.2,0.0268411]
[1726011364121,30.43899643,2395.3,2395.2,0.0268411]
[1726011366136,30.4390252,2395.3,2395.2,0.0268411]
[1726011370689,27.81262432,2395.3,2395.2,0.0268411]
[1726011372095,30.43914152,2395.3,2395.2,0.0268411]
[1726011372267,28.3253523,2395.3,2395.2,0.0268411]
[1726011373391,32.7253523,2395.3,2395.2,0.0268411]
[1726011376103,32.72480702,2395.3,2395.2,0.0268411]
[1726011377722,32.72471743,2395.3,2395.2,0.0268411]
[1726011379000,12.52713,2394.8,2394.7,0.0268411]
[1726011379201,17.07761394,2394.8,2394.7,0.0268411]
[1726011379405,20.07761394,2394.8,2394.7,0.0268411]
[1726011379600,17.8892235,2394.8,2394.7,0.0268411]
[1726011382161,20.0769659,2394.8,2394.7,0.0268411]
[1726011382364,18.85639241,2394.8,2394.7,0.0268411]
[1726011383187,23.03210241,2394.8,2394.7,0.0268411]
[1726011383392,27.43210241,2394.8,2394.7,0.0268411]
[1726011383614,30.05787423,2394.8,2394.7,0.0268411]
[1726011385821,25.65787423,2394.8,2394.7,0.0268411]
[1726011385997,23.03210241,2394.8,2394.7,0.0268411]
[1726011386180,25.65726258,2394.8,2394.7,0.0268411]
[1726011390988,25.65746518,2394.8,2394.7,0.0268411]
[1726011391189,23.03210241,2394.8,2394.7,0.0268411]
[1726011391438,25.65746518,2394.8,2394.7,0.0268411]
[1726011391603,8.35142,2394.8,2394.7,2.3981411]
[1726011391928,10.53921919,2394.8,2394.7,2.3981411]
[1726011392241,10.10167264,2394.8,2394.7,2.3981411]
[1726011392392,10.53921919,2394.8,2394.7,2.3981411]
[1726011392590,8.35142,2394.8,2394.7,2.3981411]
[1726011392900,8.90142,2394.8,2394.7,2.3981411]
[1726011393105,13.65201405,2394.8,2394.7,2.3981411]
[1726011393330,10.20616405,2394.9,2394.7,2.63795521]
[1726011393544,4.28,2394.9,2394.8,0.08672864]
[1726011393832,4.28,2394.9,2394.8,2.64376838]
[1726011394195,4.28,2394.9,2394.8,2.7303013]
[1726011395404,4.28,2394.9,2394.8,2.45783292]
[1726011395745,4.28,2394.9,2394.8,2.3713]
[1726011395902,4.83,2394.9,2394.8,2.3713]
[1726011396826,6.58059405,2394.9,2394.8,2.3713]
[1726011397228,12.56821755,2394.9,2394.8,2.45783292]
[1726011397427,12.56821755,2394.9,2394.8,0.08653292]
[1726011397428,13.86420354,2394.9,2394.8,0.08653292]
[1726011397635,4.17571,2394.8,2394.7,0.0268411]
[1726011397837,6.47776472,2394.8,2394.7,0.0268411]
[1726011398044,6.47776472,2394.8,2394.7,0.11325055]
[1726011398430,4.72571,2394.8,2394.7,0.0268411]
[1726011398634,6.47776472,2394.8,2394.7,0.0268411]
[1726011400749,10.65347472,2394.8,2394.7,0.0268411]
[1726011400957,12.54721238,2394.8,2394.7,0.11329083]
[1726011401259,12.9851683,2394.8,2394.7,0.0268411]
[1726011401447,10.79494362,2394.8,2394.7,0.0268411]
[1726011401655,20.59892324,2394.8,2394.7,0.0268411]
[1726011403428,17.97065362,2394.8,2394.7,0.0268411]
[1726011405739,20.59931465,2394.8,2394.7,0.0268411]
[1726011410776,17.97065362,2394.8,2394.7,0.0268411]
[1726011410983,20.59940427,2394.8,2394.7,0.0268411]
[1726011415846,20.59978483,2394.8,2394.7,0.0268411]
[1726011416920,16.42407483,2394.8,2394.7,0.0268411]
[1726011417127,13.7135135,2394.8,2394.7,0.0268411]
[1726011417827,16.34264471,2394.8,2394.7,0.0268411]
[1726011419128,20.51835471,2394.8,2394.7,0.0268411]
[1726011419479,13.7135135,2394.8,2394.7,0.0268411]
[1726011419679,16.34304884,2394.8,2394.7,0.0268411]
[1726011419879,19.3588837,2394.8,2394.7,0.0268411]
[1726011420510,19.35886638,2394.8,2394.7,0.0268411]
[1726011423521,16.72934836,2394.8,2394.7,0.0268411]
[1726011423722,19.35931193,2394.8,2394.7,0.0268411]
[1726011424596,16.72934836,2394.8,2394.7,0.0268411]
[1726011426085,6.91012996,2394.9,2394.7,2.3310411]
[1726011426283,6.03319145,2394.9,2394.7,2.3310411]
[1726011426596,4.28,2394.9,2394.8,0.08363987]
[1726011426835,4.28,2394.9,2394.8,2.3042]
[1726011427004,4.28,2394.9,2394.8,2.38783987]
[1726011427201,4.28,2394.9,2394.8,3.46449697]
[1726011428423,4.83,2394.9,2394.8,3.46449697]
[1726011428630,13.18106,2394.9,2394.8,2.38783987]
[1726011429151,8.35142,2394.8,2394.7,0.0268411]
[1726011429355,15.01927593,2394.8,2394.7,0.10730672]
[1726011431755,15.4572587,2394.8,2394.7,0.10730672]
[1726011431974,15.4572587,2394.8,2394.7,0.0268411]
[1726011434180,15.4576591,2394.8,2394.7,0.1268411]
[1726011436885,12.90405282,2394.8,2394.7,0.1268411]
[1726011437062,12.46619326,2394.8,2394.7,0.1268411]
[1726011438771,0.55,2394.8,2394.7,2.5714411]
[1726011438973,8.45554,2394.9,2394.7,2.6520905]
[1726011439614,10.20803093,2394.9,2394.7,2.6520905]
[1726011440313,0.55,2394.8,2394.7,2.6520905]
[1726011443132,0.55,2394.8,2394.7,3.34327391]
[1726011443338,6.03249093,2394.9,2394.8,2.4446]
[1726011443539,6.58249093,2394.9,2394.8,2.4446]
[1726011443833,6.58249093,2394.9,2394.8,2.52519457]
[1726011445935,10.75802093,2394.9,2394.8,2.52519457]
[1726011446746,6.58249093,2394.9,2394.8,2.52519457]
[1726011450046,4.83,2394.9,2394.8,2.52519457]
[1726011450653,9.00553,2394.9,2394.8,2.52519457]
[1726011450854,14.67440709,2394.9,2394.8,0.08059457]
[1726011451216,14.67440709,2394.9,2394.7,0.0268411]
[1726011451217,8.35142,2394.8,2394.7,0.0268411]
[1726011451549,10.7135135,2394.8,2394.7,0.0268411]
[1726011451758,13.02943756,2394.8,2394.7,0.0268411]
[1726011454869,8.35316,2394.3,2393.9,0.87423933]
[1726011455164,15.02935,2393.8,2393.0,2.4068]
[1726011455314,22.2068,2393.8,2392.8,7.4168411]
[1726011455513,15.6639935,2393.8,2393.1,2.4068]
[1726011455754,15.35611472,2393.8,2393.1,2.4068]
[1726011455936,16.41155102,2393.8,2393.1,2.4068]
[1726011456140,16.36150902,2393.8,2393.1,2.4068]
[1726011456766,12.18405902,2393.8,2393.2,4.2053211]
[1726011456921,16.47311179,2393.8,2393.2,0.0268411]
[1726011457250,16.91150902,2393.8,2393.7,0.08902069]
[1726011457454,16.91150902,2393.8,2393.7,0.0268411]
[1726011457652,16.47261762,2393.8,2393.7,0.0268411]
[1726011458247,9.91950366,2393.8,2393.7,0.08902069]
[1726011458567,8.60722663,2393.8,2393.7,0.0268411]
[1726011459826,15.28167663,2393.8,2393.7,0.0268411]
[1726011460030,15.28167663,2393.8,2392.8,4.36270564]
[1726011460031,4.17898,2393.0,2392.8,4.36270564]
[1726011460268,4.17898,2393.0,2392.9,0.05044302]
[1726011460475,0.55,2393.0,2392.9,0.05044302]
[1726011460671,0.55,2393.0,2392.4,2.49038806]
[1726011460672,4.72888,2393.0,2392.4,2.49038806]
[1726011460873,4.17888,2393.0,2392.9,0.05118997]
[1726011461072,4.17888,2393.0,2392.4,2.49038806]
[1726011461073,8.90785,2393.0,2392.4,2.49038806]
[1726011461274,4.72903,2392.9,2392.4,2.49038806]
[1726011462285,0.55,2392.9,2392.4,6.67027806]
[1726011462450,0.55,2392.9,2392.4,2.49038806]
[1726011462640,4.72907,2392.9,2392.4,2.49038806]
[1726011464292,0.55,2392.9,2392.4,2.49038806]
[1726011464639,0.55,2392.9,2392.7,0.05120779]
[1726011465379,4.72905,2392.9,2392.7,0.05120779]
[1726011466637,4.72904,2392.9,2392.7,0.05120779]
[1726011468486,4.1792,2392.8,2392.7,0.05120779]
[1726011468644,4.7292,2392.8,2392.7,0.05120779]
[1726011471315,9.53940949,2392.8,2392.7,0.05120779]
[1726011471620,8.35874,2392.7,2392.3,0.0270721]
[1726011471916,16.08811,2392.7,2392.3,0.0270721]
[1726011472427,22.53008,2392.7,2392.3,0.0270721]
[1726011472593,23.28521569,2392.7,2392.3,0.0270721]
[1726011474543,19.10584569,2392.7,2392.3,0.0270721]
[1726011476804,16.84324569,2392.7,2392.3,0.0270721]
[1726011479326,12.66387569,2392.7,2392.3,0.0270721]
[1726011479679,11.90874,2392.7,2392.3,0.0270721]
[1726011483476,11.90874,2392.7,2392.6,0.05080417]
[1726011484276,7.17937,2392.7,2392.6,0.05080417]
[1726011484654,7.17937,2392.7,2392.6,0.09349299]
[1726011484892,4.1792,2392.8,2392.6,0.05080417]
[1726011485207,4.17937,2392.7,2392.6,0.05080417]
[1726011485502,0.55,2392.7,2392.6,0.05080417]
[1726011486286,3.55,2392.7,2392.6,0.05080417]
[1726011488590,7.72937,2392.7,2392.6,0.05080417]
[1726011489717,4.72937,2392.7,2392.6,0.05080417]
[1726011493049,0.55,2392.7,2392.6,0.05080417]
[1726011493250,7.34,2393.3,2392.9,2.3769]
[1726011493453,7.34,2393.3,2392.9,3.032493]
[1726011493618,5.754954,2393.4,2392.9,3.032493]
[1726011494703,5.754954,2393.4,2393.0,0.04238906]
[1726011494907,0.55,2393.3,2393.0,0.04238906]
[1726011495151,4.72842,2393.3,2393.0,0.04238906]
[1726011496507,0.55,2393.3,2393.0,0.04238906]
[1726011497208,0.55,2393.3,2393.0,0.76778027]
[1726011497762,0.55,2393.3,2393.1,6.64886]
[1726011497959,1.576714,2393.4,2393.2,4.17833]
[1726011498253,1.576714,2393.4,2393.2,4.2203741]
[1726011498452,4.17753,2393.8,2393.3,4.17822]
[1726011498615,4.17753,2393.8,2393.3,4.93919064]
[1726011498953,4.17753,2393.8,2393.4,0.04193448]
[1726011499109,0.55,2393.7,2393.4,0.04193448]
[1726011499729,4.17746,2393.8,2393.4,0.04193448]
[1726011499928,0.55,2393.7,2393.4,0.04193448]
[1726011510988,4.17798,2393.5,2393.4,0.04193448]
[1726011511297,8.35717,2393.2,2392.8,2.4945]
[1726011511586,0.55,2393.1,2392.9,0.039788]
[1726011511961,0.55,2393.1,2392.8,2.4945]
[1726011512160,0.55,2393.1,2393.0,0.03842508]
[1726011512360,0.55,2393.1,2392.9,0.03843399]
[1726011512595,0.55,2393.1,2393.0,0.03842508]
[1726011512946,0.55,2393.1,2392.8,2.5780745]
[1726011513146,0.55,2393.1,2393.0,0.03842508]
[1726011513349,0.55,2393.1,2392.8,2.5780745]
[1726011513548,0.55,2393.1,2393.0,0.03842508]
[1726011513749,0.55,2393.1,2392.8,2.5780745]
[1726011513949,0.55,2393.1,2393.0,0.03842508]
[1726011514372,5.201538,2393.1,2392.6,10.90422417]
[1726011514642,4.72868,2393.1,2393.0,0.03842508]
[1726011514800,0.55,2393.1,2392.7,4.17935]
[1726011514969,0.55,2393.1,2393.0,0.03842508]
[1726011515163,0.55,2393.1,2392.7,4.17935]
[1726011515369,0.55,2393.1,2393.0,0.03842508]
[1726011515570,0.55,2393.1,2392.7,4.17935]
[1726011515772,0.55,2393.1,2393.0,0.03842508]
[1726011515967,0.55,2393.1,2392.7,4.17935]
[1726011516173,0.55,2393.1,2393.0,0.03842508]
[1726011516390,0.55,2393.1,2392.7,4.17935]
[1726011516573,0.55,2393.1,2393.0,0.03842508]
[1726011516781,0.55,2393.1,2392.7,4.17935]
[1726011517179,0.55,2393.1,2392.8,0.03844291]
[1726011517501,0.55,2393.1,2392.7,4.17935]
[1726011517665,0.55,2393.1,2392.8,0.03844291]
[1726011517870,0.55,2393.1,2392.7,4.17935]
[1726011518182,0.55,2393.1,2392.8,0.03844291]
[1726011518577,0.55,2393.1,2392.7,4.17935]
[1726011518776,0.55,2393.1,2392.9,0.03843399]
[1726011518981,0.55,2393.1,2392.6,6.72476417]
[1726011519178,4.17912,2392.9,2392.6,0.05080417]
[1726011519480,4.7293,2392.8,2392.6,0.05080417]
[1726011519683,4.17937,2392.7,2392.6,0.05080417]
[1726011520010,4.72937,2392.7,2392.6,0.05080417]
[1726011524105,11.16114,2392.7,2392.6,0.05080417]
[1726011524308,12.47333895,2392.7,2392.6,0.05080417]
[1726011524716,12.91073861,2392.7,2392.6,0.05080417]
[1726011525019,6.04286981,2392.7,2392.6,0.05080417]
[1726011526193,3.06309842,2392.8,2392.6,0.05080417]
[1726011526375,6.36824648,2393.0,2392.6,0.05080417]
[1726011526376,1.31349981,2392.9,2392.6,0.05080417]
[1726011526577,1.31349981,2392.8,2392.6,0.08990244]
[1726011526818,1.31349981,2392.9,2392.6,0.08990244]
[1726011527129,8.49257981,2392.9,2392.6,0.08990244]
[1726011527522,8.49257981,2392.9,2392.6,0.05080417]
[1726011527815,0.55,2392.8,2392.6,0.05080417]
[1726011528426,1.86349981,2392.8,2392.6,0.05080417]
[1726011528718,1.86349981,2392.8,2392.7,0.03908935]
[1726011529698,10.65799861,2392.8,2392.7,0.03908935]
[1726011529895,6.47879861,2392.8,2392.7,0.03908935]
[1726011534482,2.29959861,2392.8,2392.7,0.03908935]
[1726011534682,6.47879861,2392.8,2392.7,0.03908935]
[1726011535499,10.65799861,2392.8,2392.7,0.03908935]
[1726011535888,6.47879861,2392.8,2392.7,0.03908935]
[1726011536091,6.47879861,2392.8,2392.6,0.05080417]
[1726011536429,1.31482942,2392.7,2392.6,0.05080417]
[1726011536591,1.86482942,2392.7,2392.6,0.05080417]
[1726011538916,10.65833861,2392.7,2392.6,0.05080417]
[1726011539121,6.47896861,2392.7,2392.6,0.05080417]
[1726011539535,6.47896861,2392.7,2392.6,0.09011477]
[1726011542048,6.47896861,2392.7,2392.6,0.05080417]
[1726011542402,6.47896861,2392.7,2392.6,0.09011477]
[1726011542732,2.29959861,2392.7,2392.6,0.09011477]
[1726011544952,6.47896861,2392.7,2392.6,0.09011477]
[1726011545185,12.91073861,2392.7,2392.6,0.09011477]
[1726011545391,11.10112542,2392.7,2392.6,0.09011477]
[1726011545686,11.10112542,2392.7,2392.6,0.05080417]
[1726011546047,10.66273596,2392.7,2392.6,0.09023528]
[1726011546244,11.10112542,2392.7,2392.6,0.09023528]
[1726011546444,8.90874,2392.7,2392.6,0.09023528]
[1726011546650,11.10112542,2392.7,2392.6,0.05080417]
[1726011548291,11.10112542,2392.7,2392.6,0.0902525]
[1726011548510,11.10112542,2392.7,2392.6,0.05080417]
[1726011548663,11.10127508,2392.7,2392.6,0.05080417]
[1726011549815,6.48339674,2392.7,2392.6,0.05080417]
[1726011550173,6.48339674,2392.7,2392.6,0.09029842]
[1726011552183,10.66276674,2392.7,2392.6,0.09029842]
[1726011553315,6.48339674,2392.7,2392.6,0.09029842]
[1726011557063,6.92195448,2392.7,2392.6,0.09029842]
[1726011557254,4.72937,2392.7,2392.6,0.09029842]
[1726011557777,2.3049493,2392.7,2392.6,2.40509842]
[1726011557953,0.55,2392.7,2392.6,2.40509842]
[1726011558154,1.7549493,2392.8,2392.6,2.40509842]
[1726011558476,1.31611615,2392.7,2392.6,2.40509842]
[1726011558677,1.31611615,2392.7,2392.6,3.06578752]
[1726011559532,1.86611615,2392.7,2392.6,3.06578752]
[1726011562335,1.31611615,2392.7,2392.6,7.24533752]
[1726011562535,1.31611615,2393.1,2392.9,4.17902]
[1726011562736,3.50993888,2393.3,2393.1,2.3148]
[1726011562951,1.31611615,2393.6,2393.3,6.49309]
[1726011563178,1.31611615,2393.5,2393.4,0.88599798]
[1726011563492,1.31611615,2393.7,2393.5,4.17798]
[1726011563785,1.31611615,2393.7,2393.6,0.03927316]
[1726011564339,1.32031625,2393.8,2393.6,0.03927316]
[1726011564679,0.0042001,2393.8,2393.7,2.3148]
[1726011565084,0.0042001,2393.8,2393.7,0.03836346]
[1726011565382,0.0042001,2393.8,2393.7,0.03835772]
[1726011565792,0.0042001,2393.8,2393.6,0.08354733]
[1726011565945,1.32031625,2393.8,2393.6,0.08354733]
[1726011566138,1.32031625,2393.8,2393.7,0.03832332]
[1726011566444,0.5542001,2393.8,2393.7,0.03832332]
[1726011568687,0.0042001,2393.8,2393.7,0.03832332]
[1726011570483,0.0042001,2393.8,2393.3,6.6492]
[1726011570649,0.0042001,2393.8,2393.7,0.03828891]
[1726011570851,0.0042001,2393.8,2393.3,7.4156794]
[1726011571090,0.0042001,2393.8,2393.7,0.03828891]
[1726011571610,0.0042001,2393.8,2393.3,6.6492]
[1726011571816,0.0042001,2393.8,2393.7,0.03828891]
[1726011571974,0.60896073,2393.8,2393.3,6.6492]
[1726011572173,0.55,2393.7,2393.3,6.6492]
[1726011572411,4.1816501,2393.8,2393.3,6.6492]
[1726011572614,0.55,2393.7,2393.3,6.6492]
[1726011573823,0.55,2393.7,2393.3,10.82744]
[1726011574000,0.5542001,2393.8,2393.3,10.82744]
[1726011574721,0.5542001,2393.8,2393.3,6.6492]
[1726011574873,0.5542001,2393.8,2393.3,10.82743]
[1726011575076,0.5542001,2393.8,2393.3,6.6492]
[1726011575273,0.5542001,2393.8,2393.3,10.82744]
[1726011575920,0.5542001,2393.8,2393.3,6.6492]
[1726011576121,0.5542001,2393.8,2393.3,10.82744]
[1726011578222,0.5542001,2393.8,2393.3,8.35644]
[1726011578425,4.7317101,2393.8,2393.3,4.1782]
[1726011580328,4.17766,2393.7,2393.2,0.08355507]
[1726011580621,4.17766,2393.7,2393.1,4.17856]
[1726011580622,5.36431851,2393.6,2393.1,4.17856]
[1726011581319,7.80771851,2393.6,2393.1,4.17856]
[1726011581680,0.55,2393.6,2393.2,4.26206392]
[1726011581880,0.0042001,2393.8,2393.7,15.00389]
[1726011582117,0.0042001,2393.8,2393.7,16.63591497]
[1726011582989,0.0042001,2393.8,2393.7,12.45828497]
[1726011584200,0.0042001,2393.8,2393.7,14.35960803]
[1726011584378,0.0042001,2393.8,2393.7,16.21333283]
[1726011584585,0.0042001,2393.8,2393.7,16.25119734]
[1726011589897,0.0042001,2393.8,2393.7,12.71784931]
[1726011592640,0.0042001,2393.8,2393.7,6.06921931]
[1726011592841,0.0042001,2393.8,2393.7,6.15275415]
[1726011594562,0.0042001,2393.8,2393.7,1.89158931]
[1726011594883,0.0042001,2393.8,2393.7,0.03786451]
[1726011595318,0.0042001,2393.8,2393.2,6.50348]
[1726011595319,4.7316501,2393.8,2393.5,0.08354488]
[1726011595519,0.5542001,2393.8,2393.6,0.03754729]
[1726011597349,4.7316701,2393.8,2393.6,0.03754729]
[1726011597927,8.9092301,2393.8,2393.6,0.03754729]
[1726011598132,4.7316701,2393.8,2393.2,4.1784]
[1726011598346,4.7316701,2393.8,2393.3,4.21604307]
[1726011599354,4.7316701,2393.8,2393.3,0.03772307]
[1726011599561,5.44723711,2393.8,2393.2,4.17839]
[1726011599733,2.424,2393.7,2393.3,0.03772307]
[1726011600053,2.424,2393.7,2393.2,4.17839]
[1726011600054,0.55,2393.6,2393.2,4.17839]
[1726011600356,0.55,2393.6,2393.3,0.03776321]
[1726011600555,0.55,2393.6,2393.2,4.828739]
[1726011600858,0.55,2393.6,2393.3,0.03776321]
[1726011601174,0.55,2393.6,2393.2,4.17839]
[1726011601332,0.55,2393.6,2393.3,0.03778041]
[1726011601663,0.55,2393.6,2393.2,4.17839]
[1726011601857,0.55,2393.6,2393.4,0.0377715]
[1726011602018,0.55,2393.6,2393.3,0.12133492]
[1726011602219,0.55,2393.6,2393.5,0.03779127]
[1726011602447,0.55,2393.6,2393.4,0.03780018]
[1726011602643,0.0042001,2393.8,2393.5,0.03779127]
[1726011602962,0.5542001,2393.8,2393.5,0.12134092]
[1726011603752,0.5542001,2393.8,2393.5,0.03779127]
[1726011604661,14.31294803,2393.6,2393.5,0.03779127]
[1726011604861,2.424,2393.5,2392.7,4.17936]
[1726011605109,2.424,2393.2,2392.7,4.17929]
[1726011605439,0.55,2393.1,2392.7,4.17929]
[1726011605735,0.55,2393.1,2392.7,5.04761496]
[1726011605907,0.55,2393.1,2392.8,0.08357105]
[1726011606292,0.55,2393.1,2392.8,4.26275105]
[1726011606602,1.31202181,2393.6,2393.0,4.17875]
[1726011606939,6.60172,2393.7,2393.2,4.17848]
[1726011607235,7.91374181,2393.7,2393.3,0.08355453]
[1726011607906,1.86202181,2393.6,2393.3,0.08355453]
[1726011608493,1.31202181,2393.5,2393.0,0.08355616]
[1726011608725,4.1787,2393.1,2392.6,4.23025417]
[1726011608928,10.78146,2393.1,2392.6,4.23025417]
[1726011609129,6.6027,2393.1,2392.6,5.30596985]
[1726011609471,0.55,2393.0,2392.6,5.30596985]
[1726011610265,4.72895,2393.0,2392.6,1.12651985]
[1726011610467,4.17904,2392.9,2392.6,0.05080417]
[1726011610626,0.55,2392.8,2392.6,0.05080417]
[1726011611060,4.17885,2393.0,2392.6,0.05080417]
[1726011611061,0.55,2392.9,2392.6,0.05080417]
[1726011612027,4.72905,2392.9,2392.6,0.05080417]
[1726011614359,0.55,2392.9,2392.6,0.05080417]
[1726011614534,0.55,2393.0,2392.6,0.05080417]
[1726011614733,4.72898,2393.0,2392.6,0.05080417]
[1726011615625,4.17904,2392.9,2392.6,0.05080417]
[1726011615825,0.55,2392.8,2392.6,0.05080417]
[1726011620890,4.17879,2393.1,2392.6,4.23023417]
[1726011621191,4.17879,2393.1,2392.7,0.08357359]
[1726011621765,10.67789,2393.3,2392.7,6.69674359]
[1726011621974,4.17841,2393.3,2392.8,4.26274298]
[1726011622570,8.35685,2393.3,2392.8,4.26274298]
[1726011622764,4.17841,2393.3,2392.8,4.26274298]
[1726011622970,0.55,2393.2,2392.8,4.26274298]
[1726011623208,0.55,2393.2,2392.8,5.35543069]
[1726011624470,4.72854,2393.2,2392.8,0.08357298]
[1726011625369,0.55,2393.2,2392.8,0.08357298]
[1726011625912,9.49904,2393.5,2392.8,4.26267298]
[1726011626112,8.65202181,2393.6,2393.0,6.61265]
[1726011626113,7.34,2393.6,2393.0,6.61265]
[1726011626284,4.1778,2393.7,2393.1,0.08355873]
[1726011626480,4.17789,2393.6,2393.1,4.26213873]
[1726011626801,4.1778,2393.7,2393.2,4.1785]
[1726011627110,4.1778,2393.7,2393.3,0.08355669]
[1726011627633,4.1816801,2393.8,2393.3,2.58055669]
[1726011627912,0.55,2393.7,2393.3,2.58055669]
[1726011629466,4.72764,2393.7,2393.3,2.58055669]
[1726011631100,4.72764,2393.7,2393.3,0.08355669]
[1726011631312,4.65109401,2393.6,2393.3,0.08355669]
[1726011631518,0.55,2393.5,2393.2,0.08355578]
[1726011631902,0.55,2393.5,2393.3,0.07351703]
[1726011632118,0.55,2393.5,2393.3,0.15707327]
[1726011632335,0.55,2393.5,2393.3,0.08355624]
[1726011632510,0.55,2393.5,2393.4,0.0735237]
[1726011633536,4.728,2393.5,2393.0,4.17874]
[1726011633737,4.728,2393.5,2393.4,0.0735237]
[1726011633942,4.728,2393.5,2393.2,0.08355629]
[1726011634119,4.728,2393.5,2393.4,0.073581]
[1726011634308,4.728,2393.5,2393.3,0.07359152]
[1726011634509,4.728,2393.5,2393.4,0.07358673]
[1726011634922,4.728,2393.5,2393.2,0.08355629]
[1726011635104,4.728,2393.5,2393.4,0.07358673]
[1726011635328,4.728,2393.5,2393.3,0.07359726]
[1726011635512,4.728,2393.5,2393.4,0.07358673]
[1726011635938,4.728,2393.5,2393.1,0.08356029]
[1726011636247,0.55,2393.5,2393.1,0.08356029]
[1726011636452,0.55,2393.6,2393.2,6.74901778]
[1726011637199,4.72781,2393.6,2393.2,6.74901778]
[1726011637895,4.72781,2393.6,2393.2,2.57060778]
[1726011640226,6.03983181,2393.6,2393.2,2.57060778]
[1726011640444,6.03983181,2393.6,2393.2,0.07360778]
[1726011640752,4.72781,2393.6,2393.2,0.07360778]
[1726011640973,6.03983181,2393.6,2393.2,0.07360778]
[1726011641134,4.72781,2393.6,2393.2,0.07360778]
[1726011641459,6.03983181,2393.6,2393.2,0.07360778]
[1726011641858,4.17801,2393.5,2393.2,0.07360778]
[1726011642062,0.55,2393.4,2393.2,0.07360778]